Cogmind - Beta 13 @@@ ROGUE MODE // 2024.04.01 @ 10:23:01 Player: Matt Result: Destroyed by S-10 Pest with Light Assault Rifle Performance ------------- Evolutions (0) 0 Regions Visited (1) 200 Robots Destroyed (10) 50 Value Destroyed (212) 212 Prototype IDs (0) 0 Alien Tech Used (0) 0 Bonus (0) 0 TOTAL SCORE: 462 Bonus ------- None Cogmind --------- Core Integrity 0/250 Matter 300/300 Energy 100/100 System Corruption 0% Temperature Cool (0) Movement Core (100) Ox1 Location -10/Materials Parts ------- > --- POWER (1) -------- (None) > --- PROPULSION (2) --- (None) > --- UTILITY (2) ------ Heat Sink Small Storage Unit > --- WEAPON (2) ------- (None) > --- INVENTORY (8) ---- Light Ion Engine Wheel Wheel Heat Sink Heat Sink Datajack Peak State ------------ > --- POWER ------------ Light Ion Engine > --- PROPULSION ------- Compact Wheel Compact Wheel > --- UTILITY ---------- Heat Sink Structural Scanner > --- WEAPON ----------- Medium Laser Assault Rifle > --- INVENTORY -------- Light Ion Engine Wheel Wheel Medium Laser [Rating: 7] Favorites ----------- Power Light Ion Engine Engine Light Ion Engine Propulsion Wheel Wheel Wheel Utility Heat Sink Device Heat Sink Storage Small Storage Unit Weapon Medium Laser Energy Gun Medium Laser Ballistic Gun Assault Rifle Build | -11 -10 ------- Run | Yrd Mat Slots Evolved . | . . Power . | . . Propulsion . | . . Utility . | . . Weapon . | . . Parts Attached 14 | 6 8 Power 2 | 1 1 Engine 2 | 1 1 Core . | . . Reactor . | . . Propulsion 5 | 2 3 Treads . | . . Leg . | . . Wheel 5 | 2 3 Hover . | . . Flight . | . . Utility 3 | . 3 Device 2 | . 2 Storage 1 | . 1 Processor . | . . Hackware . | . . Protection . | . . Artifact . | . . Weapon 4 | 3 1 Energy Gun 3 | 2 1 Energy Cannon . | . . Ballistic Gun 1 | 1 . Ballistic Cannon . | . . Launcher . | . . Special Weapon . | . . Impact Weapon . | . . Slashing Weapon . | . . Piercing Weapon . | . . Special Melee Weapon . | . . Unidentified Prototypes . | . . Parts Lost 7 | . 7 Power 2 | . 2 Propulsion 3 | . 3 Utility . | . . Weapon 2 | . 2 Highest Loss Streak 5 | . 5 To Critical Strikes . | . . Average Slot Usage (%) 84 | . 84 Engine 11 | . 11 Wheel 24 | . 24 Device 16 | . 16 Storage 3 | . 3 Energy Gun 16 | . 16 Ballistic Gun 10 | . 10 Naked Turns . | . . Heaviest Build 15 | 7 15 Greatest Support 32 | 20 32 Greatest Overweight (x) 1 | . 1 Average Overweight (x) . | . . Largest Inventory Capacity 8 | 5 8 Average Capacity 5 | 5 5 Most Carried 6 | 5 6 Average Carried 4 | 2 5 Final Capacity 8 | 5 8 Final Carried 6 | 5 6 Class Distribution -------------------- 100% | Mutant Dominant Class ---------------- Mutant | -10/Materials Resources | -11 -10 ----------- Run | Yrd Mat Matter Collected 372 | 250 122 Remotely . | . . Salvage Created 400 | 108 292 Parts 22 | 4 18 Haulers Intercepted . | . . Recyclers Shooed 1 | . 1 Parts Field Recycled . | . . Retrieved Matter . | . . Parts Self-Destructed . | . . Prevented . | . . Kills | -11 -10 ------- Run | Yrd Mat Combat Hostiles Destroyed 6 | 1 5 Guns 6 | 1 5 Classes Destroyed 6 | 3 3 Worker 1 | 1 . Builder 1 | . 1 Tunneler 1 | 1 . Recycler 1 | . 1 Swarmer 1 | . 1 Grunt 5 | 1 4 Best Kill Streak 4 | 3 4 Combat Bots Only 3 | 1 3 Max Kills in Single Turn 1 | 1 1 Gunslinging . | . . Exploded . | . . Melee . | . . Uniques/NPCs Destroyed . | . . Combat | -11 -10 -------- Run | Yrd Mat Hostile Shots Fired 101 | 8 93 Missed 31 | 3 28 Damage Taken 646 | 58 588 Core 251 | 23 228 Absorbed by Shields . | . . Core Remaining (%) 90 | 90 . Volleys Fired 27 | 7 20 Largest 2 | 2 2 Hottest 100 | 100 100 Shots Fired 54 | 14 40 Gun 54 | 14 40 Cannon . | . . Launcher . | . . Special . | . . Kinetic 14 | . 14 Thermal 40 | 14 26 Explosive . | . . Electromagnetic . | . . Robot Hit Streak 9 | 3 9 Robot Miss Streak 3 | 3 3 Penetration Max . | . . Secondary Targets 1 | . 1 Max Gunslinging Chain 1 | . 1 Shots Hit Robots 36 | 8 28 Core Hits 17 | 4 13 Critical Kills . | . . Critical Parts Destroyed . | . . Critical Strikes 2 | 1 1 Burn 2 | 1 1 Melee Attacks . | . . Impact . | . . Slashing . | . . Piercing . | . . Sneak Attacks . | . . Combat Hostiles . | . . Follow-up Attacks . | . . Damage Inflicted 459 | 113 346 Guns 459 | 113 346 Cannons . | . . Explosions . | . . Melee . | . . Ramming . | . . Kinetic 135 | . 135 Thermal 324 | 113 211 Explosive . | . . Electromagnetic . | . . Impact . | . . Slashing . | . . Piercing . | . . Highest Corruption . | . . Average Corruption . | . . Corruption Purged . | . . Corruption Blocked . | . . Overload Shots . | . . Overflow Damage . | . . Projectiles . | . . Explosions . | . . Melee . | . . Knockbacks . | . . Impact . | . . Kinetic . | . . Secondary . | . . Self-Inflicted Damage . | . . Shots . | . . Rammed . | . . Targets Rammed . | . . Kicked . | . . Crushed . | . . Highest Temperature 244 | 244 45 Average Temperature 65 | 118 15 Received Heat Transfer 108 | 30 78 Siege Activations . | . . Robots Corrupted . | . . Combat Hostiles . | . . Parts Fried . | . . Impact Corruptions . | . . Robots Melted . | . . Combat Hostiles . | . . Parts Melted 1 | 1 . Heat Transferred 1110 | 407 703 Parts Sabotaged . | . . Parts Stolen . | . . Parts Stripped . | . . Power Chain Reactions . | . . Alert | -11 -10 ------- Run | Yrd Mat Peak Influence 155 | 30 155 Initial 19 | . 19 Average 56 | 5 80 Maximum Alert Level . | . . Low Security (%) 100 | 100 100 Level 1 . | . . Level 2 . | . . Level 3 . | . . Level 4 . | . . Level 5 . | . . High Security . | . . Max Security . | . . Squads Dispatched . | . . Investigation . | . . Extermination . | . . Reinforcement . | . . Assault . | . . Garrison . | . . Intercept . | . . Searches Triggered . | . . Construction Impeded . | . . Haulers Reinforced . | . . Active Scanning Responses . | . . Cargo Convoy Interrupts . | . . Stealth | -11 -10 --------- Run | Yrd Mat Distress Signals 2 | . 2 Communications Jammed . | . . Distress Signals . | . . Times Spotted 13 | 1 12 Peak Tracking Total 6 | 1 6 Tactical Retreats . | . . Traps | -11 -10 ------- Run | Yrd Mat Traps Triggered . | . . Indirectly . | . . Trap Hack Attempts . | . . Triggered . | . . Disarmed . | . . Reprogrammed . | . . Reused . | . . Traps Extracted . | . . Installed . | . . Triggered . | . . Machines | -11 -10 ---------- Run | Yrd Mat Machines Disabled . | . . Max in Single Turn . | . . Machines Repaired . | . . Machines Dismantled . | . . Machines Sabotaged . | . . Overloaded Fab Kills . | . . Hacking | -11 -10 --------- Run | Yrd Mat Machines Accessed 1 | . 1 Terminals 1 | . 1 Fabricators . | . . Repair Stations . | . . Recycling Units . | . . Scanalyzers . | . . Garrison Access . | . . Total Hacks 5 | . 5 Successful 4 | . 4 Failed 1 | . 1 Catastrophic . | . . Database Lockouts . | . . Manual . | . . Terminals 5 | . 5 Fabricators . | . . Repair Stations . | . . Recycling Units . | . . Scanalyzers . | . . Garrison Access . | . . Terminal Hacks 4 | . 4 Record 1 | . 1 Emergency Access Points 1 | . 1 Locate Traps 1 | . 1 Dispatch Records 1 | . 1 Fabricator Hacks . | . . Repair Station Hacks . | . . Recycling Unit Hacks . | . . Scanalyzer . | . . Garrison Access Hacks . | . . Unauthorized Hacks . | . . Terminals . | . . Fabricators . | . . Repair Stations . | . . Recycling Units . | . . Scanalyzers . | . . Garrison Access . | . . Data Cores Recovered . | . . Used . | . . Hacking Detections 1 | . 1 Full Trace Events . | . . Feedback Events . | . . Feedback Blocked . | . . Robot Schematics Acquired . | . . Robots Built . | . . Authchips . | . . Time . | . . Total Robot Build Rating . | . . Part Schematics Acquired . | . . Parts Built . | . . Authchips . | . . Time . | . . Total Part Build Rating . | . . Parts Repaired . | . . Time . | . . Parts Recycled . | . . Recycled Matter . | . . Retrieved Matter . | . . Retrieved Components . | . . Parts Scanalyzed . | . . Part Schematics Acquired . | . . Parts Damaged . | . . Bothacking | -11 -10 ------------ Run | Yrd Mat Used RIF Installer . | . . Robots Hacked . | . . Non-combat . | . . Combat . | . . Robot Hacks Applied . | . . Relay Couplers Released . | . . Fabnet Peak Effective % . | . . Robots Rewired . | . . Allies Hacked . | . . Hacks Repelled . | . . Allies | -11 -10 -------- Run | Yrd Mat Total Allies . | . . Largest Group . | . . Highest-Rated Group . | . . Highest-Rated Ally . | . . Total Orders . | . . Ally Attacks . | . . Total Damage . | . . Kills . | . . Allies Corrupted . | . . Allies Melted . | . . Intel | -11 -10 ------- Run | Yrd Mat Robot Analysis Total . | . . Derelict Logs Recovered . | . . Drone Launches . | . . Drone Recoveries . | . . Exploration | -11 -10 ------------- Run | Yrd Mat Turns Passed 299 | 93 206 Spaces Moved 215 | 76 139 Core 17 | 16 1 Treads . | . . Legs . | . . Wheels 198 | 60 138 Hover . | . . Flight . | . . Fastest Speed 50 | 50 80 Average Speed 84 | 73 90 Slowest Speed 100 | 80 100 Overloaded Moves . | . . Propulsion Burnouts . | . . Robots Hopped . | . . Cave-ins Triggered . | . . Exploration Rate (%) 22 | 8 37 Regions Visited 1 Branch Regions . Pre-discovered Areas . | . . Known Exits Taken . | . . Unknown Exits Taken 1 | 1 . Scrap Searched . | . . Spaces Dug . | . . Terrain Destroyed . | . . Melee . | . . Projectile . | . . AOE . | . . Terrain Rammed . | . . Walls Destroyed . | . . Machines Disabled . | . . Actions | -11 -10 --------- Run | Yrd Mat Total 276 | 98 178 Wait . | . . Move 214 | 75 139 Hop . | . . Pick Up 16 | 10 6 Fast Attach 4 | . 4 Attach 6 | 5 1 Detach . | . . Swap 4 | 1 3 Drop 5 | . 5 Fire 27 | 7 20 Melee . | . . Ram . | . . Kick . | . . Crush . | . . Escape Stasis . | . . Rewire . | . . Trap . | . . Miscellaneous . | . . Route ------- -11/Scrapyard -10/Materials History --------- Turn | Location | Event 2 | -11/Scrapyard | Met Revision 17 64 | -11/Scrapyard | Discovered new exit (range 8) 94 | -11/Scrapyard | Entered Materials 274 | -10/Materials | Core integrity fell below 50% 296 | -10/Materials | Core integrity fell below 20% 300 | -10/Materials | Destroyed by S-10 Pest with Light Assault Rifle Last Messages --------------- Acquired Datajack. Acquired 30 matter. R-06 Scavenger collects Signal Interpreter. K-01 Serf collects debris. Dropped Structural Scanner. Acquired Sml. Storage Unit. R-06 Scavenger collects Aluminum Leg. Acquired 10 matter. K-01 Serf collects debris. Acquired Heat Sink. K-01 Serf collects debris. R-06 Scavenger inserts Heat Sink into recycling unit. K-01 Serf collects debris. S-10 Pest destroyed. Switching to secondary target: S-10 Pest. Com. Wheel destroyed. Ion Engine destroyed. Med. Laser destroyed. Com. Wheel destroyed. Map ----- +----------------------------------------------------+ | ???????????????????## ""###### | | ???????????????###### T"###### | | ???????????????###### ""##??## | | ????????????#####"""# ############# | | ????????????#####"Y"#####+################# | | ????????????## % ! ^ ##???????? | | ????????????## [ ##???????? | | ????????????## ! ##???????? | | ????????????## *^ ##???????? | | ????########## ^ =%[ ##???????? | | ???? # """"""" ##???????? | | ???? # %""""""" ##???????? | | ???# """ """ # """"""" ##???????? | | ???# """ """ + """"""" ##???????? | | ???# """ """ # ^[%^%"""????? = # ???????? | | ???# """ """ # = [ ???? ???????? | | ???# # ??? ???????? | | ???# [ # ^ ?????? ???????? | | ???#/##/##/### ^?????????????? | | ???# %### ^ ??????????????? | | ???# ### ""T"" ???????????????? | | ???# ### """"" ???????????????? | | ???# #?# ????????????????? | | ???# #?? ?????? ????????????????? | | ???# ###########k####???????????????? | | ???# s @/ #???????????????? | | ???# s # """ #???????????????? | | ???# sss #??""" #???????????????? | | ???# +????" #???????????????? | | ???# ##+#########??????????????????????? | | ???# ??????????????????????????????????? | | ???# ??????????????????????????????????? | | ???# ??????????????????????????????????? | | ???# ??????????????????????????????????? | | ???# ??????????????????????????????????? | | ???####???????????????????????????????????? | | ??????????????????????????????????????????? | | ??????????????????????????????????????????? | | ??????????????????????????????????????????? | | ??????????????????????????????????????????? | | ??????????????????????????????????????????? | | ??????????????????????????????????????????? | | ??????????????????????????????????????????? | | ??????????????????????????????????????????? | | ??????????????????????????????????????????? | | ??????????????????????????????????????????? | | ??????????????????????????????????????????? | | ??????????????????????????????????????????? | | ??????????????????????????????????????????? | | ??????????????????????????????????????????? | +----------------------------------------------------+ Best States ------------- Heat Dissipation 35 Energy Generation 10 Energy Capacity 250 Matter Stores 300 Matter Capacity 300 Sight Range 16 Terrain Scan Density 10 Evasion (%) 50 Item Schematics ----------------- None Robot Schematics ------------------ None Fabricated ------------ Nothing Alien Tech Used ----------------- None Achievements -------------- None Challenges ------------ None Game ------ Seed ProtonBarrageThermoblaster Manual? 0 Play Time 00:12:31 Cumulative 4.1 hours Start 2024.04.01 @ 10:13:28 End 2024.04.01 @ 10:23:01 Sessions 1 Manual Loads 0 Difficulty Rogue Special Mode None Game No. 3 Rogue 3 Adventurer 0 Explorer 0 Win Type - Total 0 Types 0/0/0/0/0/0/0/0/0 Lore% 11 Gallery% 7 Achievement% 8 Wizard Run 0 Options --------- Layout 1 ASCII 0 Keyboard 0 Movement Mouse Keybinds 0 Fullscreen 1 Font 24/Smallcaps Map View 50x35 Zoom Use 0% Tactical HUD 0 Map Filters NONE Filters NONE Steam 1 RUN: 3fc35017-3350-415a-ae91-3816f9821fb2